bitfinex/quotes_BTCUSD_20240820
["timestamp","ask_amount","ask_price","bid_price","bid_amount"]
[1724191301227,1.36495559,59483.0,59482.0,0.0099031]
[1724191301453,1.52495259,59483.0,59482.0,0.0109031]
[1724191301655,1.46595559,59483.0,59482.0,0.0109031]
[1724191301860,1.82418559,59483.0,59482.0,0.0099031]
[1724191302211,1.82618559,59483.0,59482.0,0.0109031]
[1724191302503,1.88419135,59483.0,59482.0,0.0019031]
[1724191302742,1.82718559,59483.0,59482.0,0.0089031]
[1724191302949,1.8861909,59483.0,59482.0,0.0089031]
[1724191303161,1.82718559,59483.0,59482.0,0.0089031]
[1724191303390,1.8251882,59483.0,59482.0,0.0009031]
[1724191303594,1.8331882,59483.0,59482.0,0.0009031]
[1724191303799,1.8321882,59483.0,59482.0,0.0009031]
[1724191304050,2.0231882,59483.0,59482.0,0.0009031]
[1724191304255,1.6639582,59483.0,59482.0,0.0009031]
[1724191304466,0.3011532,59483.0,59482.0,0.0009031]
[1724191304674,0.09345125,59483.0,59482.0,0.0009031]
[1724191304879,0.03055125,59483.0,59482.0,0.0009031]
[1724191305119,0.03055054,59483.0,59482.0,0.0009031]
[1724191305327,0.02555054,59483.0,59482.0,0.0009031]
[1724191305532,0.01655054,59483.0,59482.0,0.0009031]
[1724191305938,0.008,59483.0,59482.0,0.0019031]
[1724191306523,0.001,59483.0,59482.0,0.0009031]
[1724191306732,0.002,59483.0,59482.0,0.0089031]
[1724191306956,0.001,59483.0,59482.0,0.5132571]
[1724191307365,0.001,59488.0,59486.0,0.168105]
[1724191307717,0.001,59489.0,59486.0,0.168105]
[1724191307928,0.0155473,59488.0,59486.0,0.168105]
[1724191308127,0.001,59489.0,59486.0,0.167105]
[1724191308532,0.0155473,59488.0,59486.0,0.167105]
[1724191308709,0.001,59489.0,59486.0,0.167105]
[1724191309120,0.01554737,59488.0,59486.0,0.166105]
[1724191309397,0.001,59489.0,59486.0,0.166105]
[1724191309613,0.001,59489.0,59483.0,0.33623]
[1724191309807,0.001,59489.0,59485.0,0.168108]
[1724191310011,0.002,59489.0,59486.0,0.009]
[1724191310419,0.001,59489.0,59485.0,0.168108]
[1724191310811,0.002,59489.0,59485.0,0.168108]
[1724191311004,0.002,59489.0,59486.0,0.0009031]
[1724191311430,0.001,59489.0,59486.0,0.0009031]
[1724191311672,0.001,59488.0,59486.0,0.0009031]
[1724191311875,0.001,59489.0,59486.0,0.0009031]
[1724191312082,0.002,59487.0,59486.0,0.0009031]
[1724191312260,0.168101,59488.0,59486.0,0.0039031]
[1724191312434,0.170101,59488.0,59486.0,0.0039031]
[1724191312611,0.002,59489.0,59486.0,0.0039031]
[1724191312612,0.52285718,59487.0,59486.0,0.0039031]
[1724191312816,0.52085718,59487.0,59486.0,0.0039031]
[1724191313001,0.52185718,59487.0,59486.0,0.0039031]
[1724191313214,0.0279849,59483.0,59482.0,0.0009031]
[1724191313430,0.0279849,59483.0,59482.0,0.03495362]
[1724191314320,0.0289849,59483.0,59482.0,0.03495362]
[1724191314532,0.0289849,59483.0,59482.0,0.5052571]
[1724191314971,0.0289849,59483.0,59482.0,0.8414931]
[1724191316055,0.0289849,59483.0,59482.0,0.8514931]
[1724191316056,0.0299849,59483.0,59482.0,0.8514931]
[1724191321915,0.0299849,59483.0,59482.0,0.97026701]
[1724191322111,0.0299849,59483.0,59482.0,1.2689291]
[1724191322331,0.0299849,59483.0,59482.0,1.3647791]
[1724191322537,0.0299849,59483.0,59482.0,1.7020151]
[1724191322744,0.0299849,59483.0,59482.0,1.9965151]
[1724191322944,0.0289849,59483.0,59482.0,1.9865151]
[1724191323305,0.0616,59505.0,59482.0,1.9865151]
[1724191323306,0.0626,59505.0,59497.0,0.0788]
[1724191323499,0.0626,59505.0,59497.0,0.0778]
[1724191323500,0.168059,59503.0,59497.0,0.0778]
[1724191323697,0.01554286,59502.0,59499.0,0.16807]
[1724191323900,0.01554286,59501.0,59500.0,0.168067]
[1724191324233,0.01554286,59501.0,59497.0,0.09222]
[1724191324234,0.002,59506.0,59497.0,0.09222]
[1724191324440,0.34422279,59512.0,59494.0,0.0664]
[1724191324441,0.01554241,59505.0,59504.0,0.504166]
[1724191324643,0.01554241,59505.0,59504.0,0.840277]
[1724191324787,0.00915279,59512.0,59511.0,0.167036]
[1724191324988,0.0246921,59512.0,59511.0,0.503108]
[1724191325189,0.0246921,59512.0,59504.0,0.4202387]
[1724191325190,0.001,59509.0,59507.0,0.168046]
[1724191325402,0.002,59506.0,59505.0,0.168053]
[1724191325613,0.01553931,59506.0,59500.0,0.336133]
[1724191325813,0.01553931,59506.0,59499.0,0.01]
[1724191325814,0.0794,59505.0,59499.0,0.01]
[1724191326175,0.01553931,59504.0,59501.0,0.168063]
[1724191326382,0.01553931,59504.0,59502.0,0.16806]
[1724191327056,0.01553931,59504.0,59498.0,0.336142]
[1724191327057,0.003,59502.0,59498.0,0.168072]
[1724191327262,0.001,59500.0,59499.0,0.013]
[1724191327462,0.001,59500.0,59498.0,0.168072]
[1724191327463,0.01553931,59500.0,59498.0,0.168072]
[1724191327593,0.001,59497.0,59489.0,0.336194]
[1724191327796,0.001,59497.0,59483.0,0.0643]
[1724191327797,0.001,59491.0,59487.0,0.336206]
[1724191328026,0.001,59491.0,59488.0,0.336201]
[1724191328027,0.0646,59490.0,59488.0,0.336201]
[1724191328990,0.0646,59490.0,59489.0,0.168098]
[1724191329332,0.001,59502.0,59489.0,0.1617513]
[1724191329333,0.001,59501.0,59489.0,0.1617513]
[1724191329494,0.01554379,59500.0,59499.0,0.84035]
[1724191329937,0.01554379,59500.0,59499.0,1.274645]
[1724191330292,0.05897848,59507.0,59506.0,0.16805]
[1724191330490,0.05897848,59507.0,59506.0,0.50415]
[1724191330491,0.07451988,59507.0,59506.0,0.50415]
[1724191330697,0.07451988,59507.0,59502.0,0.33612]
[1724191330698,0.001,59505.0,59504.0,0.168054]
[1724191330901,0.002,59502.0,59499.0,0.014]
[1724191331130,0.002,59502.0,59498.0,0.16807]
[1724191331131,0.0155414,59501.0,59498.0,0.16807]
[1724191331332,0.0797414,59501.0,59499.0,0.014]
[1724191331553,0.0797414,59501.0,59492.0,0.336178]
[1724191331554,0.002,59496.0,59492.0,0.336178]
[1724191331755,0.002,59496.0,59495.0,0.168081]
[1724191331992,0.001,59500.0,59492.0,0.336174]
[1724191332201,0.001,59500.0,59492.0,0.354629]
[1724191332202,0.0155422,59499.0,59492.0,0.354629]
[1724191332347,0.0155422,59498.0,59497.0,0.336151]
[1724191332539,0.0155422,59498.0,59497.0,0.504226]
[1724191332540,0.01554215,59498.0,59497.0,0.504226]
[1724191333141,0.001,59500.0,59499.0,0.16807]
[1724191333792,0.01654209,59500.0,59499.0,0.16807]
[1724191334032,0.01854209,59500.0,59499.0,0.16707]
[1724191334404,0.001,59499.0,59497.0,0.014]
[1724191334583,0.01554209,59498.0,59497.0,0.182075]
[1724191335186,0.01654209,59498.0,59497.0,0.182075]
[1724191335414,0.01754209,59498.0,59497.0,0.168075]
[1724191336240,0.002,59498.0,59497.0,0.168075]
[1724191336446,0.002,59498.0,59497.0,0.014]
[1724191336447,0.003,59498.0,59497.0,0.014]
[1724191336620,0.0816,59498.0,59497.0,0.014]
[1724191336821,0.09714225,59498.0,59497.0,0.014]
[1724191337826,0.60656122,59498.0,59497.0,0.025]
[1724191338034,1.00110425,59498.0,59497.0,0.025]
[1724191338650,0.168092,59491.0,59486.0,0.168105]
[1724191338874,0.168092,59491.0,59484.0,0.336222]
[1724191338875,0.002,59485.0,59484.0,0.336222]
[1724191339311,0.002,59485.0,59484.0,0.504334]
[1724191339924,0.002,59485.0,59482.0,0.1690191]
[1724191339925,0.001,59483.0,59482.0,0.1690191]
[1724191340133,0.001,59483.0,59482.0,0.0009031]
[1724191340134,0.002,59483.0,59482.0,0.0009031]
[1724191340345,0.54762228,59483.0,59482.0,0.0009031]
[1724191340573,0.26275725,59483.0,59482.0,0.0009031]
[1724191341225,0.01554225,59483.0,59482.0,0.1690211]
[1724191341436,0.001,59487.0,59486.0,0.168106]
[1724191341437,0.002,59487.0,59486.0,0.168106]
[1724191341674,0.002,59491.0,59487.0,0.168102]
[1724191341875,0.002,59491.0,59486.0,0.168105]
[1724191341876,0.01554754,59490.0,59486.0,0.168105]
[1724191342080,0.2270751,59493.0,59485.0,0.00336198]
[1724191342081,0.01554754,59489.0,59485.0,0.00336198]
[1724191342287,0.0694,59494.0,59491.0,0.336182]
[1724191342288,0.001,59494.0,59491.0,0.336182]
[1724191342505,0.01554603,59493.0,59492.0,0.168088]
[1724191343141,0.01554576,59493.0,59492.0,0.168088]
[1724191343350,0.01554576,59493.0,59490.0,0.168094]
[1724191343602,0.001,59491.0,59490.0,0.168094]
[1724191343861,0.003,59494.0,59491.0,0.168092]
[1724191344115,0.01554579,59493.0,59491.0,0.168092]
[1724191344333,0.003,59494.0,59493.0,0.0752]
[1724191344334,0.001,59494.0,59493.0,0.0752]
[1724191344551,0.001,59494.0,59493.0,0.97979614]
[1724191344765,0.001,59494.0,59493.0,1.369359]
[1724191344970,0.001,59494.0,59493.0,1.53233778]
[1724191345208,0.000821,59500.0,59499.0,0.84035]
[1724191345424,0.01636159,59500.0,59499.0,0.84035]
[1724191345692,0.01636159,59500.0,59499.0,0.83935]
[1724191346504,0.01636159,59500.0,59499.0,0.51721]
[1724191347149,0.01636159,59500.0,59499.0,0.51621]
[1724191347737,0.01736159,59500.0,59499.0,0.53021]
[1724191348464,0.01736159,59500.0,59499.0,0.51621]
[1724191348880,0.001821,59500.0,59499.0,0.53021]
[1724191349375,0.01736178,59500.0,59499.0,0.51621]
[1724191349569,0.01736178,59500.0,59499.0,0.014]
[1724191349774,0.01836178,59500.0,59499.0,0.028]
[1724191350325,0.18742878,59500.0,59499.0,0.014]
[1724191350544,0.52356278,59500.0,59499.0,0.014]
[1724191350751,0.52356278,59500.0,59499.0,0.028]
[1724191351808,0.60176278,59500.0,59499.0,0.014]
[1724191352031,0.66072855,59500.0,59499.0,0.028]
[1724191352245,0.60176278,59500.0,59499.0,0.028]
[1724191352922,0.586222,59500.0,59499.0,0.014]
[1724191353125,0.586222,59500.0,59499.0,0.028]
[1724191353126,0.6017664,59500.0,59499.0,0.028]
[1724191353347,0.586222,59500.0,59499.0,0.014]
[1724191353586,0.60176628,59500.0,59499.0,0.014]
[1724191353820,0.60276628,59500.0,59499.0,0.028]
[1724191356365,0.93890028,59500.0,59499.0,0.028]
[1724191356572,0.923356,59500.0,59499.0,0.028]
[1724191356765,1.33401311,59500.0,59499.0,0.028]
[1724191357002,0.99787911,59500.0,59499.0,0.028]
[1724191357194,1.27503474,59500.0,59499.0,0.028]
[1724191357590,1.27503474,59500.0,59499.0,0.014]
[1724191357990,0.842362,59498.0,59497.0,0.0009031]
[1724191358188,0.85790674,59498.0,59497.0,0.0009031]
[1724191359227,0.85790674,59498.0,59497.0,0.0029031]
[1724191359873,0.85790674,59498.0,59497.0,0.0059031]
[1724191360418,1.46734946,59498.0,59497.0,0.0059031]
[1724191361035,1.46734946,59498.0,59497.0,0.0009031]
[1724191361466,1.46734946,59498.0,59497.0,0.0059031]
[1724191362716,2.09799446,59498.0,59497.0,0.0059031]
[1724191363736,2.09799446,59498.0,59497.0,0.0029031]
[1724191364162,2.08444972,59498.0,59497.0,0.0029031]
[1724191364361,2.09999815,59498.0,59497.0,0.0009031]
[1724191364634,2.08444972,59498.0,59497.0,0.0009031]
[1724191364749,2.0999981,59498.0,59497.0,0.0009031]
[1724191365220,2.099998,59498.0,59497.0,0.0009031]
[1724191367581,0.12054828,59498.0,59497.0,0.0009031]
[1724191368179,0.01754828,59498.0,59497.0,0.0009031]
[1724191368567,0.18762028,59498.0,59497.0,0.0009031]
[1724191368718,0.18762028,59498.0,59497.0,0.0089031]
[1724191369182,0.18562028,59498.0,59497.0,0.0089031]
[1724191369539,0.58846528,59498.0,59497.0,0.0179031]
[1724191369739,0.58846528,59498.0,59497.0,0.0099031]
[1724191369740,0.92561028,59498.0,59497.0,0.0099031]
[1724191369966,0.92561028,59498.0,59497.0,0.0009031]
[1724191370685,0.92661028,59498.0,59497.0,0.0109031]
[1724191371093,0.92661028,59498.0,59497.0,0.0199031]
[1724191371094,0.98559252,59498.0,59497.0,0.0199031]
[1724191371259,0.92661028,59498.0,59497.0,0.0199031]
[1724191371463,0.98559192,59498.0,59497.0,0.0109031]
[1724191372106,0.98559192,59498.0,59497.0,0.0189031]
[1724191372313,0.98359192,59498.0,59497.0,0.0089031]
[1724191372509,0.98359192,59498.0,59497.0,0.0009031]
[1724191372710,0.98358908,59498.0,59497.0,0.0009031]
[1724191372916,0.98358908,59498.0,59497.0,0.0039031]
[1724191373119,0.98458908,59498.0,59497.0,0.0129031]
[1724191373754,0.01554569,59498.0,59497.0,0.0858031]
[1724191373955,0.01554569,59498.0,59497.0,0.6596291]
[1724191374155,0.01554569,59498.0,59497.0,1.3319311]
[1724191374387,0.01554569,59498.0,59497.0,1.46222421]
[1724191374562,0.000821,59500.0,59499.0,1.17649]
[1724191374788,0.000821,59500.0,59499.0,1.31779]
[1724191376460,0.001821,59500.0,59499.0,1.33179]
[1724191376885,0.001821,59500.0,59499.0,1.38184416]
[1724191377114,0.001821,59500.0,59499.0,1.33179]
[1724191377327,0.000821,59500.0,59499.0,0.98165]
[1724191377530,0.000821,59500.0,59499.0,0.99565]
[1724191377938,0.000821,59500.0,59499.0,0.64551]
[1724191378425,0.000821,59500.0,59499.0,0.65951]
[1724191378610,0.001821,59500.0,59499.0,0.67351]
[1724191379114,0.000821,59500.0,59499.0,0.64551]
[1724191379317,0.000821,59500.0,59499.0,0.67351]
[1724191379491,0.001821,59500.0,59499.0,0.67351]
[1724191379689,0.001821,59500.0,59499.0,0.65951]
[1724191379892,0.002821,59500.0,59499.0,0.67351]
[1724191380697,0.01836194,59500.0,59499.0,0.67351]
[1724191380917,0.01836194,59500.0,59499.0,0.65951]
[1724191381323,0.002821,59500.0,59499.0,1.10930751]
[1724191381693,0.002821,59500.0,59499.0,1.44544751]
[1724191381949,0.002821,59500.0,59499.0,1.10930751]
[1724191382148,0.002821,59500.0,59499.0,1.44544751]
[1724191382373,0.002821,59500.0,59499.0,1.10930751]
[1724191382908,0.002821,59500.0,59499.0,1.34579]
[1724191383111,0.002821,59500.0,59499.0,1.00965]
[1724191383544,0.002821,59500.0,59499.0,1.34579]
[1724191383691,0.002821,59500.0,59499.0,1.00965]
[1724191386145,0.002821,59500.0,59499.0,0.33737]
[1724191386544,0.002821,59500.0,59499.0,0.67351]
[1724191388949,0.002821,59500.0,59499.0,1.00965]
[1724191390431,0.002821,59500.0,59499.0,1.44684531]
[1724191391039,0.002821,59500.0,59499.0,1.34579]
[1724191391268,0.002821,59500.0,59499.0,0.94405]
[1724191392438,0.002821,59500.0,59499.0,0.60791]
[1724191393132,0.003821,59500.0,59499.0,0.028]
[1724191393336,0.01936259,59500.0,59499.0,0.028]
[1724191393542,0.01836259,59500.0,59499.0,0.028]
[1724191394320,0.01936259,59500.0,59499.0,0.028]
[1724191395111,0.02036259,59500.0,59499.0,0.028]
[1724191395454,0.01836259,59500.0,59499.0,0.028]
[1724191395656,0.60486359,59500.0,59499.0,0.028]
[1724191396647,0.60286359,59500.0,59499.0,0.014]
[1724191397054,0.60386359,59500.0,59499.0,0.028]
[1724191397276,0.66846359,59500.0,59499.0,0.014]
[1724191397684,1.34073159,59500.0,59499.0,0.028]
[1724191398842,1.34073159,59500.0,59498.0,0.0009031]
[1724191398843,1.32649,59499.0,59498.0,0.0009031]
[1724191399048,1.44203159,59499.0,59498.0,0.0009031]
[1724191399464,1.42749,59499.0,59498.0,0.0009031]
[1724191399654,1.44303742,59499.0,59498.0,0.0009031]
[1724191400444,1.42749,59499.0,59498.0,0.0009031]
[1724191400607,1.4430374,59499.0,59498.0,0.0009031]
[1724191401005,1.44303738,59499.0,59498.0,0.0009031]
[1724191401447,1.44703738,59499.0,59498.0,0.0009031]
[1724191401819,1.44503738,59499.0,59498.0,0.0009031]
[1724191402258,1.44503743,59499.0,59498.0,0.0009031]
[1724191402716,1.44603743,59499.0,59498.0,0.0009031]
[1724191403093,1.78217743,59499.0,59498.0,0.0009031]
[1724191404484,1.77917743,59499.0,59498.0,0.0009031]
[1724191404692,1.78017743,59499.0,59498.0,0.0009031]
[1724191404907,1.78217803,59499.0,59498.0,0.0009031]
[1724191407622,1.78017803,59499.0,59498.0,0.0009031]
[1724191408208,1.78117803,59499.0,59498.0,0.0009031]
[1724191408436,1.78217803,59499.0,59498.0,0.0009031]
[1724191408767,1.78117803,59499.0,59498.0,0.0009031]
[1724191408982,1.10889803,59499.0,59498.0,0.0009031]
[1724191409241,1.10989803,59499.0,59498.0,0.0009031]
[1724191409465,1.10789803,59499.0,59498.0,0.0009031]
[1724191409859,1.10989803,59499.0,59498.0,0.0009031]
[1724191410067,1.10889803,59499.0,59498.0,0.0009031]
[1724191410274,1.10689693,59499.0,59498.0,0.0009031]
[1724191410811,1.10689693,59499.0,59498.0,0.0049031]
[1724191410812,0.95889693,59499.0,59498.0,0.0049031]
[1724191411043,0.95889505,59499.0,59498.0,0.0049031]
[1724191411249,0.95889505,59499.0,59498.0,0.0009031]
[1724191411451,0.95889505,59499.0,59498.0,0.0049031]
[1724191411679,0.95989505,59499.0,59498.0,0.0049031]
[1724191411884,1.0188744,59499.0,59498.0,0.0049031]
[1724191412094,1.01887838,59499.0,59498.0,0.0049031]
[1724191412312,1.01787838,59499.0,59498.0,0.0049031]
[1724191412752,1.35501838,59499.0,59498.0,0.0109031]
[1724191412959,1.376336,59499.0,59498.0,0.0109031]
[1724191413428,1.436936,59499.0,59498.0,0.0109031]
[1724191413660,1.43693787,59499.0,59498.0,0.0069031]
[1724191413873,1.42139,59499.0,59498.0,0.0119031]
[1724191414089,1.43693789,59499.0,59498.0,0.0119031]
[1724191415167,1.77307789,59499.0,59498.0,0.0119031]
[1724191415580,1.75753,59499.0,59498.0,0.0119031]
[1724191415788,1.77307819,59499.0,59498.0,0.0119031]
[1724191416758,1.77390019,59499.0,59498.0,0.0119031]
[1724191417181,1.79690019,59499.0,59498.0,0.0119031]
[1724191417796,1.79590019,59499.0,59498.0,0.0009031]
[1724191418003,2.09040019,59499.0,59498.0,0.0009031]
[1724191418230,2.09940019,59499.0,59498.0,0.0019031]
[1724191419450,2.09940062,59499.0,59498.0,0.0019031]
[1724191419655,2.083852,59499.0,59498.0,0.0019031]
[1724191419880,2.09940062,59499.0,59498.0,0.0019031]
[1724191424100,1.430212,59499.0,59498.0,0.0019031]
[1724191424304,1.36546066,59499.0,59498.0,0.0019031]
[1724191428114,1.44156066,59499.0,59498.0,0.0019031]
[1724191428515,1.77770066,59499.0,59498.0,0.0019031]
[1724191429336,1.77769966,59499.0,59498.0,0.0019031]
[1724191434617,1.30485966,59499.0,59498.0,0.0019031]
[1724191438143,1.30485961,59499.0,59498.0,0.0019031]
[1724191439263,0.86871961,59499.0,59498.0,0.0019031]
[1724191439469,0.86871961,59499.0,59498.0,0.3143751]
[1724191439470,0.01936961,59499.0,59498.0,0.3143751]
[1724191439775,0.07834441,59499.0,59498.0,0.41313462]
[1724191440268,0.01636961,59499.0,59498.0,0.41313462]
[1724191440415,0.01636961,59499.0,59498.0,0.3143751]
[1724191440416,0.01936961,59499.0,59498.0,0.3143751]
[1724191440832,0.02136961,59499.0,59498.0,0.1463031]
[1724191441249,0.01836488,59499.0,59498.0,0.1463031]
[1724191441708,0.0173649,59499.0,59498.0,0.1673031]
[1724191441884,0.01736481,59499.0,59498.0,0.1673031]
[1724191442095,0.01736481,59499.0,59498.0,0.1603031]
[1724191442096,0.01636481,59499.0,59498.0,0.1603031]
[1724191442262,0.01736481,59499.0,59498.0,0.1743031]
[1724191442466,0.01736481,59499.0,59498.0,0.3283751]
[1724191442868,0.01836481,59499.0,59498.0,0.3423751]
[1724191443070,0.01736481,59499.0,59498.0,0.6645201]
[1724191443296,0.01736481,59499.0,59498.0,1.0006651]
[1724191443499,0.01836481,59499.0,59498.0,1.0146651]
[1724191443698,0.01816252,59499.0,59498.0,1.06555869]
[1724191443870,0.01816252,59499.0,59498.0,1.07955869]
[1724191444204,0.01816252,59499.0,59498.0,1.12963073]
[1724191444406,0.01816058,59499.0,59498.0,1.06555869]
[1724191444753,0.01616058,59499.0,59498.0,1.06555869]
[1724191444981,0.01716058,59499.0,59498.0,1.07955869]
[1724191445138,0.01716058,59499.0,59498.0,1.06555869]
[1724191445547,0.00161971,59499.0,59498.0,1.07955869]
[1724191445775,0.01716056,59499.0,59498.0,1.07955869]
[1724191445988,0.00061971,59499.0,59498.0,1.06555869]
[1724191446342,0.01716033,59499.0,59498.0,1.07955869]
[1724191446582,0.00161971,59499.0,59498.0,1.07955869]
[1724191447102,0.00161971,59499.0,59498.0,1.0006651]
[1724191447699,0.00161971,59499.0,59498.0,1.0146651]
[1724191448222,0.00261971,59499.0,59498.0,0.1603031]
[1724191448422,0.86051087,59499.0,59498.0,0.0979031]
[1724191448607,0.86051087,59499.0,59498.0,0.1119031]
[1724191449242,0.85951087,59499.0,59498.0,0.0979031]
[1724191449396,0.86051087,59499.0,59498.0,0.1119031]
[1724191449603,0.86051087,59499.0,59498.0,0.0289031]
[1724191450130,0.86051087,59499.0,59498.0,0.0149031]
[1724191450467,0.86051087,59499.0,59498.0,0.0289031]
[1724191450982,0.85951087,59499.0,59498.0,0.0009031]
[1724191451391,0.86051087,59499.0,59498.0,0.0289031]
[1724191452174,1.19665087,59499.0,59498.0,0.0289031]
[1724191453599,1.25561679,59499.0,59498.0,0.0289031]
[1724191453808,1.24009015,59499.0,59498.0,0.0289031]
[1724191454011,1.25563556,59499.0,59498.0,0.0289031]
[1724191454210,0.91949556,59499.0,59498.0,0.0289031]
[1724191454459,0.24721547,59499.0,59498.0,0.0289031]
[1724191454891,0.1872351,59499.0,59498.0,0.0289031]
[1724191455451,0.1872351,59499.0,59498.0,0.1093031]
[1724191455583,0.5243751,59499.0,59498.0,0.1093031]
[1724191456170,0.50882971,59499.0,59498.0,0.1093031]
[1724191456459,0.52437491,59499.0,59498.0,0.1093031]
[1724191457490,0.58335466,59499.0,59498.0,0.1093031]
[1724191457613,0.98319466,59499.0,59498.0,0.0289031]
[1724191458068,1.31933466,59499.0,59498.0,0.0289031]
[1724191458289,0.98319466,59499.0,59498.0,0.0289031]
[1724191458592,0.91949527,59499.0,59498.0,0.0289031]
[1724191458776,0.86051491,59499.0,59498.0,0.0289031]
[1724191458978,0.91949504,59499.0,59498.0,0.0289031]
[1724191459982,0.84496971,59499.0,59498.0,0.0289031]
[1724191460179,0.504217,59498.0,59497.0,0.0069062]
[1724191460382,0.52076179,59498.0,59497.0,0.0069062]
[1724191460559,0.52276179,59498.0,59497.0,0.0069062]
[1724191461145,0.85890679,59498.0,59497.0,0.0069062]
[1724191461340,0.843362,59498.0,59497.0,0.0069062]
[1724191461462,0.85990685,59498.0,59497.0,0.0209062]
[1724191461869,0.85990685,59498.0,59497.0,0.0349062]
[1724191462282,0.844362,59498.0,59497.0,0.0349062]
[1724191462497,0.85990685,59498.0,59497.0,0.0349062]
[1724191462937,0.85990687,59498.0,59497.0,0.0349062]
[1724191463543,0.85990687,59498.0,59497.0,0.028]
[1724191464115,0.85990687,59498.0,59497.0,0.0289042]
[1724191467614,0.844362,59498.0,59497.0,0.0289042]
[1724191467813,0.85990687,59498.0,59497.0,0.0289042]
[1724191470864,0.91888509,59498.0,59497.0,0.0289042]
[1724191471030,0.85990687,59498.0,59497.0,0.0289042]
[1724191472263,0.91888497,59498.0,59497.0,0.0289042]
[1724191472810,0.85990687,59498.0,59497.0,0.0289042]
[1724191476072,0.86072887,59498.0,59497.0,0.0289042]
[1724191477481,0.01736687,59498.0,59497.0,0.29095962]
[1724191477713,0.01736687,59498.0,59497.0,0.2739792]
[1724191477890,0.07634084,59498.0,59497.0,0.2739792]
[1724191478065,0.01736687,59498.0,59497.0,0.2739792]
[1724191478302,0.01936687,59498.0,59497.0,0.2739792]
[1724191478705,0.01936687,59498.0,59497.0,0.1059042]
[1724191479669,0.01736687,59498.0,59497.0,0.1059042]
[1724191480403,0.18743887,59498.0,59497.0,0.1059042]
[1724191481284,0.52358297,59498.0,59497.0,0.1059042]
[1724191481493,0.508039,59498.0,59497.0,0.1059042]
[1724191481775,0.52358314,59498.0,59497.0,0.1059042]
[1724191482202,0.52458314,59498.0,59497.0,0.1059042]
[1724191482517,0.86072814,59498.0,59497.0,0.0289042]
[1724191482706,1.19687314,59498.0,59497.0,0.0289042]
[1724191485189,0.18743814,59498.0,59497.0,0.0289042]
[1724191485402,0.01736668,59498.0,59497.0,0.1696042]
[1724191486050,0.01736668,59498.0,59497.0,0.6738302]
[1724191489244,0.01736372,59498.0,59497.0,0.6738302]
[1724191490373,0.01736372,59498.0,59497.0,0.72374228]
[1724191490588,0.01736372,59498.0,59497.0,0.6738302]
[1724191493308,0.001822,59498.0,59497.0,0.6738302]
[1724191494010,0.01736372,59498.0,59497.0,0.6738302]
[1724191495951,0.01736372,59498.0,59497.0,0.72377252]
[1724191496176,0.01736372,59498.0,59497.0,1.05992352]
[1724191496383,0.01736372,59498.0,59497.0,1.0099812]
[1724191497241,0.01736347,59498.0,59497.0,1.0099812]
[1724191499730,0.01736373,59498.0,59497.0,1.0099812]
[1724191501356,0.01736373,59498.0,59497.0,1.15707326]
[1724191501566,0.01736373,59498.0,59497.0,1.3461322]
[1724191501925,0.01736373,59498.0,59497.0,1.39604116]
[1724191502364,0.01736373,59498.0,59497.0,1.3461322]
[1724191502569,0.01736373,59498.0,59497.0,1.39598043]
[1724191503393,0.01736373,59498.0,59497.0,0.8692812]
[1724191503617,0.01736373,59498.0,59497.0,0.1969792]
[1724191503822,0.01736373,59498.0,59497.0,0.0289042]
[1724191503823,0.01836373,59498.0,59497.0,0.0289042]
[1724191504212,0.002822,59498.0,59497.0,0.0289042]
[1724191504414,0.01736388,59498.0,59497.0,0.0289042]
[1724191504621,0.01736388,59498.0,59497.0,0.1969792]
[1724191505161,0.01736388,59498.0,59497.0,0.5331302]
[1724191505491,0.01736388,59498.0,59497.0,0.1969792]
[1724191506055,0.01736388,59498.0,59497.0,0.5331302]
[1724191507117,0.01836388,59498.0,59497.0,0.1969792]
[1724191507561,0.01936388,59498.0,59497.0,0.1969792]
[1724191507978,0.01936388,59498.0,59497.0,0.5331302]
[1724191508180,0.01736388,59498.0,59497.0,0.5331302]
[1724191508292,0.000822,59498.0,59497.0,0.5051302]
[1724191508500,0.01636391,59498.0,59497.0,0.5051302]
[1724191508718,0.01936391,59498.0,59497.0,0.1959792]
[1724191508923,0.10206391,59498.0,59497.0,0.5181302]
[1724191509130,0.10206391,59498.0,59497.0,0.5051302]
[1724191509335,0.10306391,59498.0,59497.0,0.5331302]
[1724191509704,0.10406391,59498.0,59497.0,0.1969792]
[1724191510258,0.10406391,59498.0,59497.0,0.5331302]
[1724191511489,0.10406391,59498.0,59497.0,0.0289042]
[1724191511490,0.10506391,59498.0,59497.0,0.0289042]
[1724191511869,0.10506452,59498.0,59497.0,0.0289042]
[1724191512071,0.27313652,59498.0,59497.0,0.0289042]
[1724191512274,0.67118152,59498.0,59497.0,0.0289042]
[1724191512505,0.33503652,59498.0,59497.0,0.0289042]
[1724191512709,0.33503755,59498.0,59497.0,0.0289042]
[1724191512913,0.39401205,59498.0,59497.0,0.0289042]
[1724191513514,0.22394005,59498.0,59497.0,0.0289042]
[1724191513718,0.01936555,59498.0,59497.0,0.1969792]
[1724191513918,0.01936555,59498.0,59497.0,0.5331302]
[1724191514593,0.01936555,59498.0,59497.0,0.8692812]
[1724191514799,0.01936555,59498.0,59497.0,0.9866812]
[1724191516586,0.01936555,59498.0,59497.0,1.03652926]
[1724191516587,0.01936306,59498.0,59497.0,1.03652926]
[1724191517043,0.01936306,59498.0,59497.0,1.11692926]
[1724191517230,0.01936293,59498.0,59497.0,1.23105998]
[1724191517381,0.01936293,59498.0,59497.0,1.28086517]
[1724191517589,0.01936274,59498.0,59497.0,1.23105998]
[1724191518018,0.01936274,59498.0,59497.0,1.4660322]
[1724191518377,0.01936274,59498.0,59497.0,1.5158357]
[1724191518982,0.01936274,59498.0,59497.0,0.5331302]
[1724191519183,0.01936274,59498.0,59497.0,0.8692812]
[1724191519397,0.01936274,59498.0,59497.0,1.08358645]
[1724191519613,0.01936274,59498.0,59497.0,1.96137769]
[1724191519817,0.003822,59498.0,59497.0,1.91849069]
[1724191520023,1e-08,59498.0,59497.0,1.91749069]
[1724191520247,1e-08,59498.0,59497.0,2.01289069]
[1724191520449,1e-08,59498.0,59497.0,1.89549069]
[1724191520887,1e-08,59498.0,59497.0,1.89649069]
[1724191521269,0.00061971,59499.0,59498.0,1.354227]
[1724191521464,0.00061971,59499.0,59498.0,2.01380521]
[1724191521868,0.00061971,59499.0,59498.0,2.01480521]
[1724191522094,0.00061971,59499.0,59498.0,2.01380521]
[1724191522300,0.00061971,59499.0,59498.0,2.02780521]